fUST/lending_fUST_20250127
["ID","MTS","AMOUNT","RATE_DAILY","PERIOD"]
[350470962,1737910234126,-569.86152142,0.00016438,2]
[350470963,1737910234135,-500.0,0.00016438,2]
[350470964,1737910234145,-151.0,0.00016438,2]
[350470965,1737910234155,-151.0,0.00016438,2]
[350470966,1737910234164,-501.0028369,0.00016438,2]
[350470967,1737910234175,-435.4424253,0.00016438,2]
[350470968,1737910234184,-3526.77,0.00016438,2]
[350470969,1737910234194,-500.0,0.00016438,2]
[350470970,1737910234203,-865.82,0.00016438,2]
[350470971,1737910234213,-500.0,0.00016438,2]
[350470972,1737910234223,-500.0,0.00016438,2]
[350470973,1737910234232,-500.0,0.00016438,2]
[350470974,1737910234241,-500.0,0.00016438,2]
[350470975,1737910234251,-509.59984663,0.00016438,2]
[350470976,1737910234260,-500.0,0.00016438,2]
[350470977,1737910234272,-500.0,0.00016438,2]
[350470978,1737910234284,-510.22865719,0.00016438,2]
[350470979,1737910234294,-151.0,0.00016438,2]
[350470980,1737910234304,-151.0,0.00016438,2]
[350470981,1737910234313,-151.0,0.00016438,2]
[350470982,1737910234324,-8193.05,0.00016438,2]
[350470983,1737910234338,-500.0,0.00016438,2]
[350470984,1737910234347,-151.0,0.00016438,2]
[350470985,1737910234357,-500.0,0.00016438,2]
[350470986,1737910234367,-500.0,0.00016438,2]
[350470987,1737910234377,-806.11,0.00016438,2]
[350470988,1737910234386,-549.65923518,0.00016438,2]
[350470989,1737910234395,-823.77,0.00016438,2]
[350470990,1737910234406,-511.15889391,0.00016438,2]
[350470991,1737910234416,-1925.11,0.00016438,2]
[350470992,1737910234426,-500.0,0.00016438,2]
[350470993,1737910234435,-500.0,0.00016438,2]
[350470994,1737910234445,-269.08,0.00016438,2]
[350470995,1737910234455,-500.0,0.00016438,2]
[350470996,1737910234464,-500.0,0.00016438,2]
[350470997,1737910234474,-500.0,0.00016438,2]
[350470998,1737910234485,-500.0,0.00016438,2]
[350470999,1737910234494,-500.0,0.00016438,2]
[350471000,1737910234504,-532.7560017,0.00016438,2]
[350471001,1737910234514,-500.0,0.00016438,2]
[350471002,1737910234524,-500.0,0.00016438,2]
[350471003,1737910234535,-870.65,0.00016438,2]
[350471004,1737910234545,-500.0,0.00016438,2]
[350471005,1737910234554,-500.0,0.00016438,2]
[350471006,1737910234564,-500.0,0.00016438,2]
[350471007,1737910234573,-500.0,0.00016438,2]
[350471008,1737910234584,-500.0,0.00016438,2]
[350471009,1737910234593,-500.0,0.00016438,2]
[350471010,1737910234602,-500.0,0.00016438,2]
[350471011,1737910234612,-500.0,0.00016438,2]
[350471012,1737910234621,-500.0,0.00016438,2]
[350471013,1737910234630,-151.0,0.00016438,2]
[350471014,1737910234640,-151.0,0.00016472,2]
[350471015,1737910234649,-151.0,0.00016472,2]
[350471016,1737910234659,-500.0,0.00016473,2]
[350471017,1737910234668,-500.0,0.00016473,2]
[350471018,1737910234679,-500.0,0.00016473,2]
[350471019,1737910234688,-362.76667961,0.00016473,2]
[350471020,1737910234698,-500.0,0.00016473,2]
[350471021,1737910234708,-500.0,0.00016473,2]
[350471022,1737910234718,-383.97148222,0.00016475,2]
[350471023,1737910234727,-278.0,0.0001648,2]
[350471024,1737910234736,-500.0,0.00016557,2]
[350471025,1737910234745,-500.0,0.00016557,2]
[350471026,1737910234755,-500.0,0.00016557,2]
[350471027,1737910234765,-500.0,0.00016557,2]
[350471028,1737910234776,-151.0,0.00016558,2]
[350471029,1737910234788,-151.0,0.00016559,2]
[350471030,1737910234797,-500.0,0.00016559,2]
[350471031,1737910234807,-500.0,0.00016559,2]
[350471032,1737910234817,-500.0,0.00016559,2]
[350471033,1737910234827,-500.0,0.00016559,2]
[350471034,1737910234836,-500.0,0.00016559,2]
[350471035,1737910234846,-500.0,0.00016559,2]
[350471036,1737910234856,-500.0,0.00016559,2]
[350471037,1737910234865,-500.0,0.00016559,2]
[350471038,1737910234875,-151.0,0.00016559,2]
[350471039,1737910234885,-151.0,0.00016559,2]
[350471040,1737910234894,-151.0,0.00016559,2]
[350471041,1737910234904,-151.0,0.0001656,2]
[350471042,1737910234914,-151.0,0.00016561,2]
[350471043,1737910234923,-151.0,0.00016561,2]
[350471044,1737910234933,-151.0,0.00016561,2]
[350471045,1737910234943,-151.0,0.00016561,2]
[350471046,1737910234953,-151.0,0.00016561,2]
[350471047,1737910234963,-228.4471342,0.00016561,2]
[350471048,1737910234972,-500.0,0.00016561,2]
[350471049,1737910234981,-151.0,0.00016561,2]
[350471050,1737910234991,-151.0,0.00016561,2]
[350471051,1737910235000,-151.0,0.00016562,2]
[350471052,1737910235009,-151.0,0.00016562,2]
[350471053,1737910235019,-151.0,0.00016562,2]
[350471054,1737910235029,-151.0,0.00016562,2]
[350471055,1737910235041,-151.0,0.00016562,2]
[350471056,1737910235050,-207.591824,0.00016562,2]
[350471057,1737910235060,-500.0,0.00016563,2]
[350471058,1737910235069,-151.0,0.00016565,2]
[350471059,1737910235080,-151.0,0.00016565,2]
[350471060,1737910235090,-151.0,0.00016567,2]
[350471061,1737910235099,-151.0,0.00016567,2]
[350471062,1737910235110,-151.0,0.00016568,2]
[350471063,1737910235121,-151.0,0.00016568,2]
[350471064,1737910235131,-500.0,0.0001657,2]
[350471065,1737910235141,-500.0,0.0001657,2]
[350471066,1737910235150,-500.0,0.0001657,2]
[350471067,1737910235159,-151.0,0.00016571,2]
[350471068,1737910235168,-151.0,0.00016571,2]
[350471069,1737910235178,-153.902647,0.00016571,2]
[350471070,1737910235187,-151.0,0.00016571,2]
[350471071,1737910235196,-500.0,0.00016572,2]
[350471072,1737910235206,-445.42346254,0.00016574,2]
[350471073,1737910235215,-151.0,0.00016575,2]
[350471074,1737910235224,-151.0,0.00016575,2]
[350471075,1737910235234,-151.0,0.00016575,2]
[350471076,1737910235243,-151.0,0.00016575,2]
[350471077,1737910235251,-151.0,0.00016575,2]
[350471078,1737910235260,-151.0,0.00016575,2]
[350471079,1737910235270,-314.99445569,0.00016575,2]
[350471080,1737910235280,-151.0,0.00016575,2]
[350471081,1737910235291,-151.0,0.00016575,2]
[350471082,1737910235300,-151.0,0.00016575,2]
[350471083,1737910235310,-151.0,0.00016575,2]
[350471084,1737910235319,-151.0,0.00016575,2]
[350471085,1737910235331,-616.43,0.00016575,2]
[350471086,1737910235341,-151.0,0.00016575,2]
[350471087,1737910235351,-151.0,0.00016575,2]
[350471088,1737910235360,-500.0,0.00016575,2]
[350471089,1737910235369,-151.0,0.00016575,2]
[350471090,1737910235378,-465.52,0.00016575,2]
[350471091,1737910235387,-500.0,0.00016575,2]
[350471092,1737910235397,-500.0,0.00016575,2]
[350471093,1737910235406,-500.0,0.00016575,2]
[350471094,1737910235415,-506.58633253,0.00016575,2]
[350471095,1737910235425,-506.37477925,0.00016575,2]
[350471096,1737910235434,-500.0,0.00016575,2]
[350471097,1737910235443,-509.16707408,0.00016575,2]
[350471098,1737910235452,-214.37200195,0.00016575,2]
[350471099,1737910235462,-355.2,0.00016575,2]
[350471100,1737910235471,-500.0,0.00016575,2]
[350471101,1737910235480,-500.0,0.00016575,2]
[350471102,1737910235489,-500.0,0.00016575,2]
[350471103,1737910235498,-491.09,0.00016575,2]
[350471104,1737910235507,-500.0,0.00016575,2]
[350471105,1737910235517,-151.0,0.00016575,2]
[350471106,1737910235633,-500.0,0.00016575,2]
[350471107,1737910235643,-525.32,0.00016575,2]
[350471108,1737910235652,-3324.96,0.00016575,2]
[350471109,1737910235662,-151.0,0.00016575,2]
[350471110,1737910235671,-333.06036026,0.00016575,2]
[350471111,1737910235681,-1171.47,0.00016575,2]
[350471112,1737910235690,-431.56,0.00016575,2]
[350471113,1737910235700,-500.0,0.00016575,2]
[350471114,1737910235709,-615.53,0.00016575,2]
[350471115,1737910235718,-215.91,0.00016575,2]
[350471116,1737910235728,-500.0,0.00016575,2]
[350471117,1737910235737,-500.0,0.00016575,2]
[350471118,1737910235747,-500.0,0.00016575,2]
[350471119,1737910235756,-1839.53,0.00016575,2]
[350471120,1737910235766,-579.09,0.00016575,2]
[350471121,1737910235776,-528.84,0.00016575,2]
[350471122,1737910235785,-500.0,0.00016575,2]
[350471123,1737910235795,-3526.77,0.00016575,2]
[350471124,1737910235804,-865.82,0.00016575,2]
[350471125,1737910235814,-164.4,0.00016575,2]
[350471126,1737910235824,-8193.05,0.00016575,2]
[350471127,1737910235834,-151.0,0.00016575,2]
[350471128,1737910235843,-154.30845726,0.00016575,2]
[350471129,1737910235853,-500.0,0.00016575,2]
[350471130,1737910235862,-806.11,0.00016575,2]
[350471131,1737910235872,-823.77,0.00016575,2]
[350471132,1737910235883,-1925.11,0.00016575,2]
[350471133,1737910235893,-500.0,0.00016575,2]
[350471134,1737910235902,-500.0,0.00016575,2]
[350471135,1737910235911,-500.0,0.00016575,2]
[350471136,1737910235921,-500.0,0.00016575,2]
[350471137,1737910235931,-216.85,0.00016575,2]
[350471138,1737910235940,-640.10042043,0.00016575,2]
[350471139,1737910235950,-870.65,0.00016575,2]
[350471140,1737910235960,-500.0,0.00016575,2]
[350471141,1737910235969,-500.0,0.00016575,2]
[350471142,1737910235980,-500.0,0.00016575,2]
[350471143,1737910235989,-151.0,0.00016649,2]
[350471144,1737910236000,-150.0,0.00016649,2]
[350471145,1737910236009,-536.0,0.00016649,2]
[350471146,1737910236019,-2060.0,0.00016649,2]
[350471147,1737910236028,-2305.0,0.00016649,2]
[350471148,1737910236038,-150.309,0.00016649,2]
[350471149,1737910236047,-406.036,0.00016679,2]
[350471150,1737910236057,-186.316394,0.00016699,2]
[350471151,1737910236067,-151.0,0.00016712,2]
[350471152,1737910236076,-151.0,0.00016712,2]
[350471153,1737910236086,-247.787534,0.00016712,2]
[350471154,1737910236095,-616.43,0.00016712,2]
[350471155,1737910236104,-500.0,0.00016712,2]
[350471156,1737910236113,-500.0,0.00016712,2]
[350471157,1737910236122,-500.0,0.00016712,2]
[350471158,1737910236131,-334.09,0.00016712,2]
[350471159,1737910236141,-151.0,0.00016712,2]
[350471160,1737910236151,-525.32,0.00016712,2]
[350471161,1737910236160,-3324.96,0.00016712,2]
[350471162,1737910236169,-1171.47,0.00016712,2]
[350471163,1737910236178,-500.0,0.00016712,2]
[350471164,1737910236188,-615.53,0.00016712,2]
[350471165,1737910236197,-500.0,0.00016712,2]
[350471166,1737910236206,-316.6,0.00016712,2]
[350471167,1737910236216,-1839.53,0.00016712,2]
[350471168,1737910236225,-579.09,0.00016712,2]
[350471169,1737910236234,-528.84,0.00016712,2]
[350471170,1737910236244,-498.16,0.00016712,2]
[350471171,1737910236253,-3526.77,0.00016712,2]
[350471172,1737910236263,-865.82,0.00016712,2]
[350471173,1737910236273,-8193.05,0.00016712,2]
[350471174,1737910236283,-270.94,0.00016712,2]
[350471175,1737910236292,-806.11,0.00016712,2]
[350471176,1737910236301,-823.77,0.00016712,2]
[350471177,1737910236311,-1925.11,0.00016712,2]
[350471178,1737910236321,-500.0,0.00016712,2]
[350471179,1737910236333,-500.0,0.00016712,2]
[350471180,1737910236343,-500.0,0.00016712,2]
[350471181,1737910236353,-500.0,0.00016712,2]
[350471182,1737910236362,-870.65,0.00016712,2]
[350471183,1737910236371,-500.0,0.00016712,2]
[350471184,1737910236382,-547.23,0.00016712,2]
[350471185,1737910236391,-500.0,0.00016712,2]
[350471186,1737910236408,-1200.0,0.00016829,2]
[350471187,1737910236421,-1000.0,0.00016843,2]
[350471188,1737910236430,-151.0,0.00016849,2]
[350471189,1737910236440,-151.0,0.00016849,2]
[350471190,1737910236450,-276.567004,0.00016849,2]
[350471191,1737910236461,-616.43,0.00016849,2]
[350471192,1737910236470,-376.05730603,0.00016849,2]
[350471193,1737910236480,-500.0,0.00016849,2]
[350471194,1737910236490,-151.0,0.00016849,2]
[350471195,1737910236501,-525.32,0.00016849,2]
[350471196,1737910236511,-3324.96,0.00016849,2]
[350471197,1737910236520,-1171.47,0.00016849,2]
[350471198,1737910236531,-500.0,0.00016849,2]
[350471199,1737910236541,-615.53,0.00016849,2]
[350471200,1737910236552,-500.0,0.00016849,2]
[350471201,1737910236561,-1839.53,0.00016849,2]
[350471202,1737910236571,-579.09,0.00016849,2]
[350471203,1737910236580,-528.84,0.00016849,2]
[350471204,1737910236590,-3526.77,0.00016849,2]
[350471205,1737910236599,-865.82,0.00016849,2]
[350471206,1737910236609,-8193.05,0.00016849,2]
[350471207,1737910236619,-806.11,0.00016849,2]
[350471208,1737910236629,-823.77,0.00016849,2]
[350471209,1737910236639,-1925.11,0.00016849,2]
[350471210,1737910236648,-500.0,0.00016849,2]
[350471211,1737910236658,-500.0,0.00016849,2]
[350471212,1737910236668,-441.01210451,0.00016849,2]
[350471213,1737910236677,-500.0,0.00016849,2]
[350471214,1737910236687,-870.65,0.00016849,2]
[350471215,1737910236696,-500.0,0.00016849,2]
[350471216,1737910236706,-500.0,0.00016849,2]
[350471217,1737910236715,-420.0,0.00016888,2]
[350471218,1737910236725,-151.0,0.000169,2]
[350471219,1737910236734,-5024.21707424,0.000169,2]
[350471220,1737910236744,-616.43,0.00016986,2]
[350471221,1737910236754,-311.83,0.00016986,2]
[350471222,1737910236764,-151.0,0.00016986,2]
[350471223,1737910236774,-525.32,0.00016986,2]
[350471224,1737910236784,-3324.96,0.00016986,2]
[350471225,1737910236794,-1171.47,0.00016986,2]
[350471226,1737910236805,-500.0,0.00016986,2]
[350471227,1737910236815,-615.53,0.00016986,2]
[350471228,1737910236826,-228.14,0.00016986,2]
[350471229,1737910236836,-1839.53,0.00016986,2]
[350471230,1737910236846,-579.09,0.00016986,2]
[350471231,1737910236856,-528.84,0.00016986,2]
[350471232,1737910236867,-3526.77,0.00016986,2]
[350471233,1737910236877,-865.82,0.00016986,2]
[350471234,1737910236887,-8193.05,0.00016986,2]
[350471235,1737910236896,-806.11,0.00016986,2]
[350471236,1737910236906,-823.77,0.00016986,2]
[350471237,1737910236916,-1925.11,0.00016986,2]
[350471238,1737910236925,-500.0,0.00016986,2]
[350471239,1737910236935,-500.0,0.00016986,2]
[350471240,1737910236945,-500.0,0.00016986,2]
[350471241,1737910236955,-870.65,0.00016986,2]
[350471242,1737910236965,-500.0,0.00016986,2]
[350471243,1737910236975,-442.40752561,0.00016986,2]
[350471244,1737910236986,-17697.0,0.00017,2]
[350471245,1737910236995,-1000.0,0.00017,17]
[350471246,1737910237004,-151.0,0.00017,2]
[350471247,1737910237015,-151.0,0.00017,2]
[350471248,1737910237025,-509.34085419,0.00017021,2]
[350471249,1737910237037,-524.75377911,0.00017021,2]
[350471250,1737910237047,-1000.0,0.00017021,2]
[350471251,1737910237058,-1000.0,0.00017021,2]
[350471252,1737910237069,-214.0,0.00017048,2]
[350471253,1737910237079,-214.0,0.00017048,2]
[350471254,1737910237088,-939.5534287,0.00017087,2]
[350471255,1737910237098,-1000.0,0.00017088,2]
[350471256,1737910237108,-2000.0,0.000171,2]
[350471257,1737910237117,-5024.21707418,0.00017107,2]
[350471258,1737910237127,-151.0,0.00017107,2]
[350471259,1737910237137,-151.0,0.00017123,2]
[350471260,1737910237147,-616.43,0.00017123,2]
[350471261,1737910237157,-525.32,0.00017123,2]
[350471262,1737910237167,-3324.96,0.00017123,2]
[350471263,1737910237177,-1171.47,0.00017123,2]
[350471264,1737910237187,-326.16282802,0.00017123,2]
[350471265,1737910237196,-615.53,0.00017123,2]
[350471266,1737910237206,-1839.53,0.00017123,2]
[350471267,1737910237216,-579.09,0.00017123,2]
[350471268,1737910237225,-528.84,0.00017123,2]
[350471269,1737910237235,-3526.77,0.00017123,2]
[350471270,1737910237248,-865.82,0.00017123,2]
[350471271,1737910237258,-8193.05,0.00017123,2]
[350471272,1737910237267,-806.11,0.00017123,2]
[350471273,1737910237277,-823.77,0.00017123,2]
[350471274,1737910237287,-1925.11,0.00017123,2]
[350471275,1737910237296,-500.0,0.00017123,2]
[350471276,1737910237306,-500.0,0.00017123,2]
[350471277,1737910237316,-500.0,0.00017123,2]
[350471278,1737910237327,-870.65,0.00017123,2]
[350471279,1737910237339,-500.0,0.00017123,2]
[350471280,1737910237349,-2000.0,0.000172,2]
[350471281,1737910237359,-2500.0,0.0001726,2]
[350471282,1737910237370,-2500.0,0.0001726,2]
[350471283,1737910237379,-2500.0,0.0001726,2]
[350471284,1737910237388,-500.0,0.0001726,2]
[350471285,1737910237398,-500.0,0.0001726,2]
[350471286,1737910237408,-500.0,0.0001726,2]
[350471288,1737910237417,-428.50945288,0.0001726,2]
[350471289,1737910237427,-1368.86291214,0.0001726,2]
[350471290,1737910237437,-151.0,0.0001726,2]
[350471292,1737910237447,-151.0,0.0001726,2]
[350471294,1737910237457,-616.43,0.0001726,2]
[350471295,1737910237466,-525.32,0.0001726,2]
[350471296,1737910237476,-3324.96,0.0001726,2]
[350471297,1737910237485,-1171.47,0.0001726,2]
[350471298,1737910237496,-615.53,0.0001726,2]
[350471299,1737910237506,-1839.53,0.0001726,2]
[350471300,1737910237516,-579.09,0.0001726,2]
[350471301,1737910237525,-528.84,0.0001726,2]
[350471302,1737910237536,-3526.77,0.0001726,2]
[350471303,1737910237545,-865.82,0.0001726,2]
[350471304,1737910237555,-8193.05,0.0001726,2]
[350471305,1737910237564,-806.11,0.0001726,2]
[350471306,1737910237573,-823.77,0.0001726,2]
[350471307,1737910237583,-1925.11,0.0001726,2]
[350471308,1737910237592,-500.0,0.0001726,2]
[350471309,1737910237601,-181.18370303,0.0001726,2]
[350471310,1737910237611,-500.0,0.0001726,2]
[350471311,1737910237621,-870.65,0.0001726,2]
[350471312,1737910237631,-483.12642203,0.0001726,2]
[350471313,1737910237640,-5024.21707418,0.00017314,2]
[350471314,1737910237649,-151.0,0.00017397,2]
[350471315,1737910237659,-151.0,0.00017397,2]
[350471316,1737910237669,-616.43,0.00017397,2]
[350471317,1737910237678,-525.32,0.00017397,2]
[350471318,1737910237688,-3324.96,0.00017397,2]
[350471319,1737910237697,-1171.47,0.00017397,2]
[350471320,1737910237707,-615.53,0.00017397,2]
[350471321,1737910237716,-150.02,0.00017397,2]
[350471323,1737910237726,-500.0,0.00017397,2]
[350471325,1737910237735,-150.02,0.00017397,2]
[350471327,1737910237745,-150.02,0.00017397,2]
[350471329,1737910237754,-150.02,0.00017397,2]
[350471331,1737910237764,-150.02,0.00017397,2]
[350471333,1737910237773,-150.02,0.00017397,2]
[350471335,1737910237782,-150.02,0.00017397,2]
[350471337,1737910237793,-1839.53,0.00017397,2]
[350471339,1737910237803,-579.09,0.00017397,2]
[350471341,1737910237812,-528.84,0.00017397,2]
[350471343,1737910237821,-3526.77,0.00017397,2]
[350471345,1737910237831,-865.82,0.00017397,2]
[350471347,1737910237840,-500.0,0.00017397,2]
[350471349,1737910237850,-150.02,0.00017397,2]
[350471351,1737910237859,-150.02,0.00017397,2]
[350471353,1737910237868,-150.02,0.00017397,2]
[350471355,1737910237877,-8193.05,0.00017397,2]
[350471357,1737910237886,-806.11,0.00017397,2]
[350471359,1737910237896,-823.77,0.00017397,2]
[350471361,1737910237905,-1925.11,0.00017397,2]
[350471363,1737910237914,-500.0,0.00017397,2]
[350471365,1737910237924,-334.05,0.00017397,2]
[350471367,1737910237933,-870.65,0.00017397,2]
[350471369,1737910237943,-22582.45374213,0.00017398,2]
[350471371,1737910237953,-151.0,0.000174,2]
[350471373,1737910237963,-2000.0,0.000175,2]
[350471375,1737910237973,-10000.0,0.000175,2]
[350471377,1737910237982,-10000.0,0.000175,2]
[350471378,1737910237992,-10000.0,0.000175,2]
[350471379,1737910238002,-5000.0,0.000175,2]
[350471380,1737910238012,-151.0,0.000175,2]
[350471381,1737910238022,-151.0,0.000175,2]
[350471382,1737910238032,-10000.0,0.000175,2]
[350471383,1737910238045,-5024.21707418,0.00017521,2]
[350471384,1737910238055,-616.43,0.00017534,2]
[350471385,1737910238066,-525.32,0.00017534,2]
[350471386,1737910238077,-3324.96,0.00017534,2]
[350471387,1737910238087,-1171.47,0.00017534,2]
[350471388,1737910238098,-615.53,0.00017534,2]
[350471389,1737910238108,-1839.53,0.00017534,2]
[350471390,1737910238119,-579.09,0.00017534,2]
[350471391,1737910238129,-528.84,0.00017534,2]
[350471392,1737910238139,-3526.77,0.00017534,2]
[350471393,1737910238148,-865.82,0.00017534,2]
[350471394,1737910238157,-8193.05,0.00017534,2]
[350471395,1737910238167,-806.11,0.00017534,2]
[350471396,1737910238176,-823.77,0.00017534,2]
[350471397,1737910238186,-1925.11,0.00017534,2]
[350471398,1737910238195,-278.79388409,0.00017534,2]
[350471399,1737910238205,-870.65,0.00017534,2]
[350471400,1737910238215,-1785.92240249,0.000176,2]
[350471401,1737910238224,-151.0,0.000176,2]
[350471402,1737910238234,-755.25701325,0.00017639,2]
[350471403,1737910238244,-278.0,0.0001767,2]
[350471404,1737910238254,-150.02,0.00017671,2]
[350471405,1737910238264,-805.30199962,0.00017671,2]
[350471406,1737910238273,-150.02,0.00017671,2]
[350471407,1737910238283,-150.02,0.00017671,2]
[350471408,1737910238294,-150.02,0.00017671,2]
[350471409,1737910238303,-150.02,0.00017671,2]
[350471410,1737910238313,-150.02,0.00017671,2]
[350471411,1737910238324,-500.0,0.00017671,2]
[350471412,1737910238338,-150.02,0.00017671,2]
[350471413,1737910238348,-150.02,0.00017671,2]
[350471414,1737910238358,-616.43,0.00017671,2]
[350471415,1737910238368,-525.32,0.00017671,2]
[350471416,1737910238380,-3324.96,0.00017671,2]
[350471417,1737910238390,-1171.47,0.00017671,2]
[350471418,1737910238400,-615.53,0.00017671,2]
[350471419,1737910238411,-1839.53,0.00017671,2]
[350471420,1737910238420,-579.09,0.00017671,2]
[350471421,1737910238429,-528.84,0.00017671,2]
[350471422,1737910238439,-3526.77,0.00017671,2]
[350471423,1737910238449,-865.82,0.00017671,2]
[350471424,1737910238458,-8193.05,0.00017671,2]
[350471425,1737910238468,-806.11,0.00017671,2]
[350471426,1737910238478,-823.77,0.00017671,2]
[350471427,1737910238488,-1925.11,0.00017671,2]
[350471428,1737910238498,-348.9999989,0.0001768,2]
[350471429,1737910238508,-7458.15634357,0.000177,2]
[350471430,1737910238517,-3000.0,0.000177,2]
[350471431,1737910238527,-151.0,0.000177,2]
[350471432,1737910238539,-151.0,0.000177,2]
[350471433,1737910238680,-3000.0,0.0001771,2]
[350471434,1737910238691,-3000.0,0.0001772,2]
[350471435,1737910238704,-5024.21707418,0.00017728,2]
[350471436,1737910238714,-3000.0,0.0001773,2]
[350471437,1737910238724,-3000.0,0.0001774,2]
[350471438,1737910238734,-3000.0,0.0001775,2]
[350471439,1737910238743,-3000.0,0.0001776,2]
[350471440,1737910238752,-3000.0,0.0001777,2]
[350471441,1737910238762,-3000.0,0.0001778,2]
[350471442,1737910238771,-3000.0,0.0001779,2]
[350471443,1737910238781,-12226.1,0.000178,2]
[350471444,1737910238792,-3000.0,0.000178,2]
[350471445,1737910238801,-151.0,0.000178,2]
[350471446,1737910238811,-151.0,0.000178,2]
[350471447,1737910238820,-151.0,0.000178,2]
[350471448,1737910238830,-616.43,0.00017808,2]
[350471449,1737910238839,-525.32,0.00017808,2]
[350471450,1737910238848,-3324.96,0.00017808,2]
[350471451,1737910238858,-1171.47,0.00017808,2]
[350471452,1737910238867,-615.53,0.00017808,2]
[350471453,1737910238877,-1839.53,0.00017808,2]
[350471454,1737910238886,-579.09,0.00017808,2]
[350471455,1737910238896,-528.84,0.00017808,2]
[350471456,1737910238905,-3526.77,0.00017808,2]
[350471457,1737910238915,-865.82,0.00017808,2]
[350471458,1737910238924,-8193.05,0.00017808,2]
[350471459,1737910238933,-806.11,0.00017808,2]
[350471460,1737910238943,-823.77,0.00017808,2]
[350471461,1737910238952,-1925.11,0.00017808,2]
[350471462,1737910238962,-166.0,0.00017808,2]
[350471463,1737910238971,-82.61110638,0.0001781,2]
[350471464,1737910239128,-1022.64169504,0.00016433,2]
[350471465,1737910239137,-270.07400659,0.00016433,2]
[350471466,1737910239146,-600.35826756,0.0001781,2]
[350471540,1737910240404,-1022.64169504,0.00016433,2]
[350471542,1737910240414,-1022.64169504,0.00016433,2]
[350471544,1737910240423,-1022.64169504,0.00016433,2]
[350471546,1737910240432,-1022.64169504,0.00016433,2]
[350471548,1737910240441,-1022.64169504,0.00016433,2]
[350471550,1737910240451,-1022.64169504,0.00016433,2]
[350471552,1737910240460,-1022.64169504,0.00016433,2]
[350471554,1737910240469,-1022.64169504,0.00016433,2]
[350471556,1737910240479,-572.72724219,0.00016433,2]
[350476652,1737910554872,400.0,0.00013973,2]
[350476654,1737910732400,182.650086,0.00013699,2]
[350476662,1737911234299,-300.0,0.00015524,2]
[350476663,1737911234322,-17551.3874336,0.00015525,2]
[350476664,1737911234343,-10230.26366084,0.00016,2]
[350476706,1737911432309,-300.0,0.00015999,2]
[350476707,1737911432319,-4049.39388521,0.00016,2]
[350476708,1737911432332,-5094.67807595,0.00016,2]
[350476709,1737911432341,-3967.11578148,0.00016,2]
[350476710,1737911432351,-2000.000001,0.00016,2]
[350476711,1737911432361,-215.28971942,0.000161,2]
[350476712,1737911432370,-215.28971941,0.000161,2]
[350476713,1737911432379,-762.54686992,0.00016334,2]
[350476714,1737911432389,-10000.0,0.000164,2]
[350476715,1737911432398,-8497.0,0.000164,2]
[350476716,1737911432407,-500.0,0.00016434,2]
[350476717,1737911432416,-914.65025311,0.00016434,2]